bitfinex/quotes_SOLUSD_20241216
["timestamp","ask_amount","ask_price","bid_price","bid_amount"]
[1734325469438,6.5774,220.91,220.84,7.77033277]
[1734325472221,0.8035892,220.9,220.82,7.77033277]
[1734325472417,0.8035892,220.9,220.82,23.776884]
[1734325473145,0.8035892,220.9,220.81,7.77033277]
[1734325478737,20.0,220.88,220.78,23.776884]
[1734325479051,6.1078,220.86,220.76,23.776884]
[1734325479249,0.80386623,220.85,220.76,31.54721677]
[1734325479560,6.1078,220.86,220.77,7.77033277]
[1734325479734,0.80386567,220.85,220.76,7.77033277]
[1734325480131,0.80386567,220.85,220.71,5.01331347]
[1734325480132,1.5727,220.84,220.71,5.01331347]
[1734325480327,0.80393757,220.83,220.74,7.77033277]
[1734325481454,0.80393757,220.83,220.75,7.77033277]
[1734325481728,1.5727,220.84,220.75,7.77033277]
[1734325482756,0.803904,220.83,220.75,31.54721677]
[1734325483248,2.37660683,220.84,220.75,23.776884]
[1734325483439,2.37660683,220.84,220.75,31.54721677]
[1734325484550,2.37660683,220.84,220.75,23.776884]
[1734325489644,2.37660683,220.84,220.75,31.54721677]
[1734325496064,2.37660683,220.84,220.75,23.776884]
[1734325497771,2.37660683,220.84,220.74,20.0]
[1734325498358,6.2568,220.83,220.7,7.77033277]
[1734325498682,0.80411634,220.82,220.7,7.77033277]
[1734325499979,0.80411634,220.82,220.69,27.77033277]
[1734325500151,20.0,220.8,220.7,23.776884]
[1734325500352,0.8041557,220.79,220.7,23.776884]
[1734325500565,7.7751,220.78,220.68,7.77033277]
[1734325500769,7.7751,220.78,220.65,5.08792939]
[1734325500770,0.80423481,220.77,220.65,5.08792939]
[1734325501068,12.12823481,220.77,220.65,7.77033277]
[1734325501274,12.12823481,220.77,220.63,7.77033277]
[1734325501470,12.12823481,220.77,220.64,7.77033277]
[1734325502174,6.6282,220.72,220.59,10.10124286]
[1734325502362,0.80449634,220.71,220.59,17.87157563]
[1734325502684,0.80449634,220.71,220.59,12.85826216]
[1734325503184,0.80449634,220.71,220.59,5.08792939]
[1734325503476,0.80449634,220.71,220.58,7.77033277]
[1734325504049,0.80449634,220.71,220.59,7.77033277]
[1734325504346,0.80449634,220.71,220.59,31.17795921]
[1734325504778,0.80449634,220.71,220.6,23.40762644]
[1734325504982,20.0,220.69,220.6,23.40762644]
[1734325505271,0.80458127,220.68,220.6,23.40762644]
[1734325506254,20.80458127,220.68,220.6,23.40762644]
[1734325506457,7.7368,220.67,220.6,23.40762644]
[1734325506668,0.80470838,220.66,220.6,23.40762644]
[1734325507257,6.1287,220.65,220.6,23.40762644]
[1734325507464,7.7368,220.63,220.6,16.74102644]
[1734325507662,0.8048779,220.62,220.6,16.74102644]
[1734325507861,20.0,220.61,220.6,16.74102644]
[1734325509573,20.0,220.6,220.54,0.5327439]
[1734325509902,0.80497517,220.61,220.55,6.70483909]
[1734325510068,0.80474415,220.62,220.56,7.77033277]
[1734325510383,7.7368,220.63,220.56,7.77033277]
[1734325510549,7.7368,220.63,220.57,14.75127473]
[1734325510750,7.7368,220.63,220.57,6.98094196]
[1734325510975,7.7368,220.63,220.58,6.70682671]
[1734325512352,7.7368,220.63,220.58,14.47715948]
[1734325512553,7.7904,220.69,220.59,31.54721677]
[1734325512885,7.7904,220.69,220.6,7.77033277]
[1734325512886,0.8045382,220.68,220.6,7.77033277]
[1734325513194,0.8045382,220.68,220.6,14.45435765]
[1734325513555,0.8045382,220.68,220.61,6.61883484]
[1734325518161,20.0,220.66,220.61,6.61883484]
[1734325518364,0.80474386,220.65,220.61,6.61883484]
[1734325519087,20.0,220.64,220.61,6.61883484]
[1734325519287,6.5988,220.62,220.61,6.61883484]
[1734325521779,8.252,220.62,220.61,6.61883484]
[1734325522101,8.252,220.62,220.54,0.5327439]
[1734325522102,9.05696694,220.62,220.54,0.5327439]
[1734325524369,20.0,220.59,220.54,0.5327439]
[1734325524687,0.80501512,220.58,220.54,0.5327439]
[1734325525577,20.80501512,220.58,220.54,0.5327439]
[1734325526288,32.13871512,220.58,220.54,0.5327439]
[1734325529089,20.0,220.55,220.54,0.5327439]
[1734325529292,20.80522821,220.55,220.54,0.5327439]
[1734325530791,46.13281221,220.55,220.54,0.5327439]
[1734325531273,51.13281221,220.55,220.54,0.5327439]
[1734325532278,22.35592821,220.55,220.54,0.5327439]
[1734325534133,22.35592821,220.55,220.43,6.26208372]
[1734325534338,20.0,220.52,220.43,6.26208372]
[1734325534512,0.80537249,220.51,220.43,6.26208372]
[1734325539126,0.80529016,220.5,220.43,6.26208372]
[1734325539316,0.80529135,220.54,220.43,6.26208372]
[1734325540506,0.80529135,220.54,220.45,12.21408288]
[1734325540893,0.80512862,220.53,220.45,12.21408288]
[1734325541091,0.80515078,220.56,220.44,12.21408288]
[1734325541291,20.0,220.54,220.43,6.26208372]
[1734325541611,0.80529169,220.53,220.43,6.26208372]
[1734325542423,0.80529169,220.53,220.43,18.4761666]
[1734325542798,0.80529169,220.53,220.43,6.26208372]
[1734325542995,0.80529169,220.53,220.42,12.21408288]
[1734325543182,0.80529169,220.53,220.43,12.21408288]
[1734325544411,0.80529169,220.53,220.44,12.21408288]
[1734325544610,0.80512251,220.56,220.45,12.21408288]
[1734325544990,0.80512251,220.56,220.44,12.21408288]
[1734325545987,0.80512251,220.56,220.45,23.776884]
[1734325546302,0.80512251,220.56,220.46,12.21408288]
[1734325547689,0.80505734,220.57,220.51,20.0]
[1734325547903,1.5553,220.61,220.51,20.0]
[1734325547904,0.80494271,220.6,220.52,12.21408288]
[1734325548625,0.80494271,220.6,220.49,18.16753091]
[1734325548805,0.80494271,220.6,220.49,5.95344803]
[1734325549639,20.0,220.59,220.49,5.95344803]
[1734325549803,0.80514475,220.58,220.49,5.95344803]
[1734325550513,1.5084,220.56,220.49,5.95344803]
[1734325550722,0.80522906,220.55,220.49,5.95344803]
[1734325557792,0.80501771,220.54,220.49,5.95344803]
[1734325557922,0.80502438,220.56,220.49,5.95344803]
[1734325560636,0.80502438,220.56,220.49,18.16932538]
[1734325560861,0.80502438,220.56,220.5,12.21587735]
[1734325561056,0.80496853,220.6,220.51,12.21587735]
[1734325561268,0.80496853,220.6,220.52,12.21587735]
[1734325561677,0.80496853,220.6,220.53,12.21587735]
[1734325561861,6.5878,220.64,220.5,5.90543121]
[1734325561862,0.80479407,220.63,220.54,12.21587735]
[1734325562377,0.80479407,220.63,220.56,12.21587735]
[1734325562586,0.80474371,220.66,220.59,12.21587735]
[1734325562874,0.80462414,220.7,220.6,12.21587735]
[1734325563085,0.80462414,220.7,220.61,12.21587735]
[1734325563559,0.80462414,220.7,220.62,12.21587735]
[1734325563944,0.80462414,220.7,220.57,11.334]
[1734325563945,0.80462414,220.7,220.63,12.21587735]
[1734325564149,0.80462414,220.7,220.65,12.21587735]
[1734325564357,0.80441382,220.75,220.67,12.21587735]
[1734325564561,0.80441382,220.75,220.68,12.21587735]
[1734325565142,0.80441382,220.75,220.67,12.21587735]
[1734325565830,0.80441382,220.75,220.68,12.21587735]
[1734325566047,0.80427513,220.79,220.68,12.21587735]
[1734325567958,23.776884,220.78,220.63,12.21587735]
[1734325568157,0.80449798,220.77,220.61,12.21587735]
[1734325568359,0.80449798,220.77,220.64,12.21587735]
[1734325569048,0.80439303,220.76,220.65,12.21587735]
[1734325569256,0.80439303,220.76,220.68,12.21587735]
[1734325570076,0.80439303,220.76,220.67,12.21587735]
[1734325570290,0.80430549,220.75,220.67,12.21587735]
[1734325570454,0.80431062,220.78,220.67,12.21587735]
[1734325570875,0.80431062,220.78,220.7,12.21587735]
[1734325571078,0.80431062,220.78,220.71,12.21587735]
[1734325571288,0.80415385,220.81,220.73,12.21587735]
[1734325571789,0.80415385,220.81,220.74,12.21587735]
[1734325572084,1.5454,220.86,220.74,12.21587735]
[1734325572085,0.80401313,220.85,220.74,12.21587735]
[1734325573088,0.80401313,220.85,220.77,12.21587735]
[1734325573458,0.80401313,220.85,220.76,12.21587735]
[1734325573654,0.80394576,220.86,220.78,12.21587735]
[1734325574252,0.80394576,220.86,220.74,11.3251]
[1734325574253,0.80394576,220.86,220.79,12.21587735]
[1734325574887,0.8038023,220.87,220.79,12.21587735]
[1734325575089,0.8038023,220.87,220.77,20.0]
[1734325575284,0.8038023,220.87,220.77,12.21587735]
[1734325575980,0.8038023,220.87,220.78,12.21587735]
[1734325576165,0.8038023,220.87,220.79,12.21587735]
[1734325576914,0.8038023,220.87,220.78,20.0]
[1734325577407,0.8038023,220.87,220.76,12.21587735]
[1734325577578,0.8038023,220.87,220.77,12.21587735]
[1734325578100,0.8038023,220.87,220.78,12.21587735]
[1734325578388,0.8038023,220.87,220.76,32.21587735]
[1734325579904,0.8038023,220.87,220.71,12.21587735]
[1734325579905,20.0,220.85,220.71,12.21587735]
[1734325580079,0.80413488,220.84,220.7,12.21587735]
[1734325580866,20.0,220.83,220.69,13.75477735]
[1734325581080,0.80413632,220.82,220.7,35.99276135]
[1734325581495,0.80413632,220.82,220.71,12.21587735]
[1734325581686,0.80413632,220.82,220.72,12.21587735]
[1734325582998,0.80413632,220.82,220.76,12.21587735]
[1734325583172,0.80396387,220.84,220.76,12.21587735]
[1734325584198,0.80399658,220.83,220.74,12.21587735]
[1734325584398,20.0,220.84,220.72,12.21587735]
[1734325584597,20.0,220.84,220.7,23.776884]
[1734325584598,0.80412036,220.83,220.71,12.21587735]
[1734325584807,0.80412036,220.83,220.7,23.776884]
[1734325584808,0.80412036,220.83,220.73,12.21587735]
[1734325585808,0.80412036,220.83,220.72,12.21587735]
[1734325586201,0.80412036,220.83,220.73,12.21587735]
[1734325587376,1.6366,220.82,220.72,12.21587735]
[1734325587572,0.80410168,220.81,220.72,12.21587735]
[1734325587797,2.44069108,220.82,220.74,12.21587735]
[1734325587997,2.44069108,220.82,220.7,23.776884]
[1734325587998,1.6366,220.82,220.75,12.21587735]
[1734325588400,0.80398057,220.81,220.74,12.21587735]
[1734325589309,0.80398057,220.81,220.73,20.0]
[1734325589710,0.80398057,220.81,220.72,12.21587735]
[1734325590078,0.80398057,220.81,220.72,23.776884]
[1734325590604,0.80398057,220.81,220.72,35.99276135]
[1734325591206,0.80398057,220.81,220.73,12.21587735]
[1734325591709,0.80398057,220.81,220.74,12.21587735]
[1734325594272,0.80398057,220.81,220.73,12.21587735]
[1734325595385,17.3611,220.88,220.7,23.776884]
[1734325595386,0.80404063,220.84,220.76,12.21587735]
[1734325595590,6.0427,220.88,220.78,12.21587735]
[1734325595591,0.80387226,220.87,220.78,12.21587735]
[1734325595980,0.80387226,220.87,220.8,35.99276135]
[1734325596178,1.6614,220.89,220.82,12.21587735]
[1734325596679,1.6614,220.89,220.83,12.21587735]
[1734325597013,1.6614,220.89,220.82,12.21587735]
[1734325598986,0.80369626,220.92,220.84,12.21587735]
[1734325599387,0.80369626,220.92,220.85,12.21587735]
[1734325599597,6.0514,220.93,220.85,12.21587735]
[1734325599793,6.0514,220.93,220.86,12.21587735]
[1734325601302,0.80349924,220.92,220.86,12.21587735]
[1734325601512,0.80349924,220.92,220.86,23.776884]
[1734325602092,6.0514,220.93,220.86,23.776884]
[1734325604223,6.0514,220.93,220.86,35.99276135]
[1734325604518,6.0514,220.93,220.86,23.776884]
[1734325605714,6.0514,220.93,220.85,23.776884]
[1734325606094,6.0514,220.93,220.85,35.99276135]
[1734325606926,6.97373463,220.98,220.89,35.99276135]
[1734325607210,6.97373463,220.98,220.85,23.776884]
[1734325607211,6.97373463,220.98,220.9,12.21587735]
[1734325608385,6.97373463,220.98,220.89,12.21587735]
[1734325608618,6.97373463,220.98,220.9,23.776884]
[1734325609488,0.20428558,220.94,220.9,23.776884]
[1734325613128,0.20428558,220.94,220.89,23.776884]
[1734325616196,0.20428558,220.94,220.89,35.99276135]
[1734325618133,0.20428558,220.94,220.9,23.776884]
[1734325619013,0.20428558,220.94,220.88,31.56238456]
[1734325621730,0.20428558,220.94,220.74,12.14990214]
[1734325621731,0.20428558,220.94,220.8,11.3222]
[1734325621939,1.00793798,220.94,220.82,7.78550056]
[1734325622163,1.00793798,220.94,220.85,7.78550056]
[1734325623347,1.00793798,220.94,220.84,7.78550056]
[1734325623852,0.8036524,220.94,220.79,21.5631]
[1734325624147,0.8036524,220.94,220.81,7.78550056]
[1734325624352,0.8036524,220.94,220.82,7.78550056]
[1734325625138,0.8036524,220.94,220.83,23.776884]
[1734325626240,6.2336,220.92,220.79,27.78550056]
[1734325626417,0.80381903,220.91,220.79,27.78550056]
[1734325627642,0.80381903,220.91,220.8,7.78550056]
[1734325627854,0.80381903,220.91,220.81,7.78550056]
[1734325628529,0.80381903,220.91,220.81,23.776884]
[1734325629246,0.80381903,220.91,220.79,7.78550056]
[1734325629444,0.80381903,220.91,220.78,27.78550056]
[1734325630026,0.80381903,220.91,220.79,7.78550056]
[1734325630639,0.80381903,220.91,220.78,27.78550056]
[1734325631869,6.0498,220.85,220.71,11.3266]
[1734325632069,0.80399108,220.84,220.74,7.78550056]
[1734325632760,0.80399108,220.84,220.73,7.78550056]
[1734325633070,0.80399108,220.84,220.72,7.78550056]
[1734325633632,0.80399108,220.84,220.71,7.78550056]
[1734325637066,0.80399108,220.84,220.7,7.78550056]
[1734325637239,0.80399108,220.84,220.7,27.78550056]
[1734325637554,0.80399108,220.84,220.71,23.776884]
[1734325638631,0.80399108,220.84,220.71,31.56238456]
[1734325640163,0.80399108,220.84,220.74,7.78550056]
[1734325640342,0.80399108,220.84,220.75,7.78550056]
[1734325641633,0.80399108,220.84,220.76,7.78550056]
[1734325642533,0.80399108,220.84,220.72,11.3265]
[1734325642534,6.0498,220.85,220.77,31.56238456]
[1734325643152,6.0498,220.85,220.78,7.78550056]
[1734325644187,6.2463,220.9,220.78,11.3232]
[1734325644391,0.80370065,220.89,220.82,7.78550056]
[1734325645572,0.80370065,220.89,220.81,27.78550056]
[1734325646571,0.80370065,220.89,220.82,7.78550056]
[1734325647275,0.80370065,220.89,220.76,23.776884]
[1734325647276,0.80370065,220.89,220.75,23.776884]
[1734325647452,0.80370065,220.89,220.78,7.78550056]
[1734325647649,0.80370065,220.89,220.77,7.78550056]
[1734325647847,0.80370065,220.89,220.77,23.776884]
[1734325648051,0.80370065,220.89,220.76,7.78550056]
[1734325648249,0.80370065,220.89,220.75,7.78550056]
[1734325648444,0.80370065,220.89,220.76,7.78550056]
[1734325649257,0.80370065,220.89,220.77,23.776884]
[1734325650484,20.0,220.85,220.72,7.78550056]
[1734325650682,7.05037713,220.84,220.7,7.78550056]
[1734325651769,18.37097713,220.84,220.71,7.78550056]
[1734325652976,18.37097713,220.84,220.72,7.78550056]
[1734325654266,18.37097713,220.84,220.73,23.776884]
[1734325655889,18.37097713,220.84,220.69,27.78550056]
[1734325656054,20.0,220.81,220.64,10.24586778]
[1734325656256,1.5322,220.79,220.67,7.78550056]
[1734325656453,0.80427294,220.78,220.67,7.78550056]
[1734325658771,0.80427294,220.78,220.68,7.78550056]
[1734325659177,0.80427294,220.78,220.69,7.78550056]
[1734325660594,0.80427294,220.78,220.68,7.78550056]
[1734325660793,0.80427294,220.78,220.68,23.776884]
[1734325662601,6.2187,220.77,220.67,23.776884]
[1734325662770,0.80428818,220.76,220.67,23.776884]
[1734325662971,0.80428818,220.76,220.67,31.56238456]
[1734325663873,0.80428818,220.76,220.69,7.78550056]
[1734325664073,6.2187,220.77,220.7,7.78550056]
[1734325665601,6.2187,220.77,220.71,7.78550056]
[1734325665782,6.2187,220.77,220.7,7.78550056]
[1734325666199,6.2187,220.77,220.71,23.776884]
[1734325670921,1.5322,220.79,220.73,7.78550056]
[1734325671087,6.85990421,220.82,220.74,31.56238456]
[1734325671415,6.0143,220.82,220.74,31.56238456]
[1734325671614,0.84917633,220.81,220.73,7.78550056]
[1734325671789,0.84917633,220.81,220.74,23.776884]
[1734325672823,6.0143,220.82,220.74,23.776884]
[1734325673117,6.0143,220.82,220.66,38.20401923]
[1734325673118,0.84918912,220.81,220.66,38.20401923]
[1734325673296,0.84918912,220.81,220.71,20.0]
[1734325673619,0.84918912,220.81,220.72,7.78550056]
[1734325675125,0.84918912,220.81,220.72,23.776884]
[1734325681035,0.84918912,220.81,220.69,31.56238456]
[1734325681816,0.84918912,220.81,220.7,7.78550056]
[1734325682325,0.84918912,220.81,220.71,23.776884]
[1734325682635,0.84918912,220.81,220.69,31.56238456]
[1734325683512,0.84918912,220.81,220.69,23.776884]
[1734325683845,0.84918912,220.81,220.66,5.15798263]
[1734325683846,11.3224,220.8,220.66,7.78550056]
[1734325684049,0.84952346,220.79,220.66,7.78550056]
[1734325684715,0.84952346,220.79,220.67,7.78550056]
[1734325685649,6.0491,220.76,220.65,23.776884]
[1734325685822,0.8495949,220.75,220.65,31.56238456]
[1734325686734,0.8495949,220.75,220.65,23.776884]
[1734325687044,0.8495949,220.75,220.63,23.776884]
[1734325687216,0.8495949,220.75,220.62,7.78550056]
[1734325688245,0.8495949,220.75,220.6,11.3323]
[1734325688246,0.8495949,220.75,220.63,7.78550056]
[1734325688545,0.8495949,220.75,220.64,23.776884]
[1734325691118,1.6122,220.74,220.64,23.776884]
[1734325691319,0.84961757,220.73,220.64,31.56238456]
[1734325691627,1.6122,220.74,220.66,7.78550056]
[1734325691828,0.84952952,220.73,220.66,7.78550056]
[1734325692144,0.84952952,220.73,220.65,7.78550056]
[1734325693648,1.6122,220.74,220.66,7.78550056]
[1734325693845,1.6122,220.74,220.67,7.78550056]
[1734325694154,1.6122,220.74,220.66,7.78550056]
[1734325694359,0.84949176,220.73,220.66,7.78550056]
[1734325694543,0.84949176,220.73,220.65,7.78550056]
[1734325694729,2.46174986,220.74,220.66,23.776884]
[1734325695432,2.46174986,220.74,220.66,31.56238456]
[1734325695641,2.46174986,220.74,220.67,7.78550056]
[1734325695850,1.6122,220.74,220.67,7.78550056]
[1734325696430,6.0491,220.76,220.7,7.78550056]
[1734325697330,6.0491,220.76,220.69,7.78550056]
[1734325697641,6.0491,220.76,220.7,23.776884]
[1734325698148,6.0491,220.76,220.7,31.56238456]
[1734325698851,6.0491,220.76,220.7,23.776884]
[1734325700238,6.0491,220.76,220.7,31.56238456]
[1734325701554,6.0491,220.76,220.71,7.78550056]
[1734325701849,1.5199,220.79,220.73,7.78550056]
[1734325703761,6.0451,220.81,220.74,31.56238456]
[1734325703954,6.0451,220.81,220.76,7.78550056]
[1734325704164,6.0451,220.81,220.74,23.776884]
[1734325704331,0.84920851,220.8,220.73,7.78550056]
[1734325704850,6.0451,220.81,220.73,7.78550056]
[1734325706128,6.0451,220.81,220.74,7.78550056]
[1734325706763,6.0451,220.81,220.75,7.78550056]
[1734325707258,6.0451,220.81,220.75,23.776884]
[1734325707568,6.0451,220.81,220.72,7.78550056]
[1734325707740,0.84923079,220.8,220.68,23.776884]
[1734325707988,0.84923079,220.8,220.71,23.776884]
[1734325708332,0.84923079,220.8,220.68,7.78550056]
[1734325709754,0.84923079,220.8,220.69,31.56238456]
[1734325710136,0.84923079,220.8,220.7,7.78550056]
[1734325713364,0.84923079,220.8,220.71,7.78550056]
[1734325713569,6.0451,220.81,220.74,31.56238456]
[1734325713787,6.0451,220.81,220.75,7.78550056]
[1734325714839,6.0451,220.81,220.74,31.56238456]
[1734325715067,6.0451,220.81,220.75,7.78550056]
[1734325724678,0.84918231,220.8,220.72,20.0]
[1734325724877,0.84918231,220.8,220.72,27.78550056]
[1734325725179,6.0451,220.81,220.73,31.56238456]
[1734325725555,0.84926905,220.8,220.73,31.56238456]
[1734325725874,0.84926905,220.8,220.73,23.776884]
[1734325726259,6.0451,220.81,220.74,7.78550056]
[1734325728186,6.0451,220.81,220.73,31.56238456]
[1734325737374,0.84926366,220.8,220.69,7.78550056]
[1734325737707,0.84926366,220.8,220.68,20.0]
[1734325737708,0.84926366,220.8,220.68,27.78550056]
[1734325738498,12.17166366,220.8,220.69,7.78550056]
[1734325739902,12.17166366,220.8,220.7,7.78550056]
[1734325741097,12.17166366,220.8,220.69,23.776884]
[1734325741098,0.84926366,220.8,220.71,31.56238456]
[1734325741302,6.0451,220.81,220.72,7.78550056]
[1734325741509,0.84925783,220.8,220.72,7.78550056]
[1734325741812,6.0451,220.81,220.73,7.78550056]
[1734325743211,0.84923426,220.8,220.72,7.78550056]
[1734325743405,0.84923426,220.8,220.71,7.78550056]
[1734325743585,0.84923426,220.8,220.72,23.776884]
[1734325743783,6.0451,220.81,220.73,7.78550056]
[1734325744880,0.84924938,220.8,220.72,31.56238456]
[1734325745086,6.0451,220.81,220.72,31.56238456]
[1734325746594,6.0451,220.81,220.73,7.78550056]
[1734325747405,1.558,220.84,220.78,7.78550056]
[1734325748986,1.558,220.84,220.77,31.56238456]
[1734325749503,0.84912856,220.83,220.71,7.06201699]
[1734325749711,0.84912856,220.83,220.71,23.776884]
[1734325749907,0.84912856,220.83,220.73,7.78550056]
[1734325750082,0.84912856,220.83,220.72,7.78550056]
[1734325750289,0.84912856,220.83,220.71,7.78550056]
[1734325750717,0.84912856,220.83,220.72,7.78550056]
[1734325751924,11.3214,220.82,220.7,31.56238456]
[1734325752218,0.84936404,220.81,220.7,31.56238456]
[1734325752419,0.84936404,220.81,220.69,7.78550056]
[1734325752713,0.84936404,220.81,220.7,23.776884]
[1734325754903,6.5804,220.8,220.68,27.78550056]
[1734325755115,0.84942485,220.79,220.69,7.78550056]
[1734325755788,0.84942485,220.79,220.7,7.78550056]
[1734325756000,6.5804,220.8,220.72,7.78550056]
[1734325757025,6.5804,220.8,220.71,7.78550056]
[1734325757203,7.42971611,220.8,220.72,31.56238456]
[1734325757921,7.42971611,220.8,220.72,23.776884]
[1734325758098,7.42971611,220.8,220.7,23.776884]
[1734325758427,7.42971611,220.8,220.69,7.78550056]
[1734325759211,7.42971611,220.8,220.68,20.0]
[1734325759540,7.42971611,220.8,220.69,7.78550056]
[1734325760547,7.42971611,220.8,220.7,31.56238456]
[1734325760725,6.5804,220.8,220.72,7.78550056]
[1734325760921,6.5804,220.8,220.73,31.56238456]
[1734325761224,1.558,220.84,220.77,7.78550056]
[1734325761804,1.558,220.84,220.78,7.78550056]
[1734325763720,6.2557,220.86,220.78,7.78550056]
[1734325767441,6.2557,220.86,220.79,7.78550056]
[1734325768118,0.20428558,220.87,220.82,23.776884]
[1734325768302,0.20428558,220.87,220.84,7.78550056]
[1734325770529,0.20428558,220.87,220.86,31.56238456]
[1734325772331,0.20428558,220.87,220.84,7.78550056]
[1734325772643,0.20428558,220.87,220.85,23.776884]
[1734325773220,0.20428558,220.87,220.85,31.56238456]
[1734325773741,2.36644945,220.95,220.85,31.56238456]
[1734325774133,2.36644945,220.95,220.87,7.78550056]
[1734325774134,1.5176,220.95,220.87,7.78550056]
[1734325774320,0.8487838,220.99,220.91,7.78550056]
[1734325774640,0.8487838,220.99,220.88,20.0]
[1734325774641,0.8487838,220.99,220.93,7.78550056]
[1734325774850,0.8487838,220.99,220.92,7.78550056]
[1734325775370,1.6165,221.0,220.93,7.78550056]
[1734325776114,6.434,221.01,220.95,7.78550056]
[1734325776319,8.0505,221.06,220.97,7.78550056]
[1734325776525,0.84832754,221.05,220.97,7.78550056]
[1734325777430,8.89880954,221.06,220.97,7.78550056]
[1734325778242,8.89880954,221.06,220.91,11.3168]
[1734325778243,8.0505,221.06,220.99,7.78550056]
[1734325778628,8.0505,221.06,220.91,11.3168]
[1734325778629,8.0505,221.06,221.0,7.78550056]
[1734325779139,8.0505,221.06,220.99,7.78550056]
[1734325780640,8.0505,221.06,220.91,11.3168]
[1734325780641,8.0505,221.06,221.0,7.78550056]
[1734325781218,8.0505,221.06,221.01,23.776884]
[1734325781744,0.20428558,221.09,221.01,31.56238456]
[1734325781922,1.05243437,221.09,221.01,31.56238456]
[1734325782314,0.20428558,221.09,221.01,31.56238456]
[1734325782613,0.20428558,221.09,221.01,23.776884]
[1734325783145,0.20428558,221.09,221.04,7.78550056]
[1734325783310,0.20428558,221.09,221.05,7.78550056]
[1734325783649,0.20428558,221.09,221.06,7.78550056]
[1734325784936,0.20428558,221.09,221.03,20.0]
[1734325785146,0.20428558,221.09,221.06,7.78550056]
[1734325787626,0.20428558,221.09,221.08,23.776884]
[1734325788837,0.20428558,221.09,221.08,31.56238456]
[1734325790346,0.20428558,221.09,221.08,33.08108456]
[1734325790573,0.20428558,221.09,221.08,64.2230868]
[1734325791324,0.20428558,221.09,221.08,69.31097195]
[1734325791747,0.5327439,221.1,221.09,35.084484]
[1734325792045,0.5327439,221.1,221.09,74.0119868]
[1734325792629,6.2948,221.22,221.09,74.0119868]
[1734325792852,1.5856,221.26,221.19,7.78550056]
[1734325793930,1.5856,221.26,221.1,36.29998487]
[1734325794118,0.8475194,221.25,221.16,23.776884]
[1734325794748,0.8475194,221.25,221.15,7.78550056]
[1734325796348,20.0,221.24,221.14,23.776884]
[1734325796540,0.84768432,221.23,221.14,31.56238456]
[1734325796759,20.0,221.22,221.11,7.78550056]
[1734325797061,0.84777075,221.21,221.12,7.78550056]
[1734325797239,0.84777075,221.21,221.13,7.78550056]
[1734325798367,0.84775308,221.24,221.15,31.56238456]
[1734325800247,0.84775308,221.24,221.15,23.776884]
[1734325800450,20.0,221.22,221.13,23.776884]
[1734325800754,20.0,221.22,221.08,21.5187]
[1734325800755,0.84775869,221.21,221.11,7.78550056]
[1734325800954,0.84775869,221.21,221.12,31.56238456]
[1734325802164,0.84775869,221.21,221.13,7.78550056]
[1734325802667,0.84775869,221.21,221.11,23.776884]
[1734325802856,17.6335,221.2,221.09,23.776884]
[1734325803054,2.42308935,221.19,221.09,23.776884]
[1734325803243,2.42308935,221.19,221.09,31.56238456]
[1734325804445,20.0,221.17,221.09,23.776884]
[1734325804646,0.8479019,221.16,221.08,7.78550056]
[1734325805872,0.8479019,221.16,221.03,6.69268263]
[1734325806049,12.1519019,221.16,221.03,7.78550056]
[1734325806250,12.1519019,221.16,220.99,11.68008515]
[1734325806251,12.1519019,221.16,221.05,7.78550056]
[1734325806456,0.8479019,221.16,221.07,7.78550056]
[1734325807371,0.8479019,221.16,220.99,54.13458739]
[1734325807372,0.8479019,221.16,221.08,23.776884]
[1734325807552,0.8479019,221.16,221.07,23.776884]
[1734325807753,0.8479019,221.16,221.08,7.78550056]
[1734325807954,0.8479019,221.16,221.07,31.56238456]
[1734325810357,0.8479019,221.16,221.07,23.776884]
[1734325811464,0.8479019,221.16,221.07,31.56238456]
[1734325812057,0.8479019,221.16,221.07,23.776884]
[1734325812258,0.8479019,221.16,221.05,7.78550056]
[1734325812563,20.0,221.16,221.07,7.78550056]
[1734325812975,0.84789476,221.15,221.06,7.78550056]
[1734325813187,0.84789476,221.15,221.05,31.56238456]
[1734325813487,0.84789476,221.15,221.06,7.78550056]
[1734325813953,0.84789476,221.15,221.05,31.56238456]
[1734325814379,12.15239476,221.15,221.05,31.56238456]
[1734325814967,12.15239476,221.15,221.06,7.78550056]
[1734325815884,20.8479897,221.17,221.08,23.776884]
[1734325816061,20.0,221.16,221.08,23.776884]
[1734325816861,20.0,221.16,221.08,31.56238456]
[1734325818362,0.84787896,221.15,220.99,16.40038515]
[1734325818663,20.0,221.13,221.03,23.776884]
[1734325818873,0.84808503,221.12,221.03,31.56238456]
[1734325819053,20.0,221.13,221.04,7.78550056]
[1734325819456,20.0,221.13,221.05,23.776884]